Workbook

Sheet 令和5年度 保険料試算
C1: 令和５年度 国民健康保険料試算（交野市）
BJ2: （２）保険料計算（世帯）
C3: 年間保険料 | I3: =BR32 ->  | O3: 円 | Q3: 月額保険料 | W3: =I3/12 ->  | AC3: 円 | BJ3: ①当初保険料（軽減判定前） | CB3: ※軽減判定
BN4: 医 療 分 | BR4: 支援金分 | BV4: 介 護 分 | CB4: 世帯所得 | CG4: =L21 -> 0
C5: ※国民健康保険に加入される方の年齢と所得を入力してください。 | BJ5: 所 得 割 | BN5: =L27+R27+X27+AD27+AJ27 -> 0 | BR5: =L29+R29+X29+AD29+AJ29 -> 0 | BV5: =L31+R31+X31+AD31+AJ31 -> 0 | CB5: 世帯人数 | CG5: =COUNT(L7:AO7) -> 0
L6: 加入者① | R6: 加入者② | X6: 加入者③ | AD6: 加入者④ | AJ6: 加入者⑤ | BJ6: 均 等 割 | BN6: =L28+R28+X28+AD28+AJ28 -> 0 | BR6: =L30+R30+X30+AD30+AJ30 -> 0 | BV6: =L32+R32+X32+AD32+AJ32 -> 0 | CB6: 給年所得者 | CG6: =L22+R22+X22+AD22+AJ22 -> 0
C7: 年 齢 | AP7: ← 年齢を入力してください。 | BJ7: 平 等 割 | BN7: =AU29 -> 29692 | BR7: =AY29 -> 9195 | BV7: =BC29 -> 0 | CB7: ※上記調整 | CG7: =IF(CG6-1<0,0,CG6-1) -> 0
C8: 人数判定 | L8: =COUNT(L7) -> 0 | R8: =COUNT(R7) -> 0 | X8: =COUNT(X7) -> 0 | AD8: =COUNT(AD7) -> 0 | AJ8: =COUNT(AJ7) -> 0 | AQ8: 世帯人数 | AV8: =SUM(L8:AO8) -> 0 | AY8: ※自動入力されます。 | BJ8: 合 計 | BN8: =SUM(BN5:BQ7) -> 29692 | BR8: =SUM(BR5:BU7) -> 9195 | BV8: =SUM(BV5:BY7) -> 0 | CB8: ※給・年所得者ゼロのときに マイナスにならない用
C9: 未就学児判定 | L9: =IF(L7="","",IF(L7<7,L8*0.5,L8)) ->  | R9: =IF(R7="","",IF(R7<7,R8*0.5,R8)) ->  | X9: =IF(X7="","",IF(X7<7,X8*0.5,X8)) ->  | AD9: =IF(AD7="","",IF(AD7<7,AD8*0.5,AD8)) ->  | AJ9: =IF(AJ7="","",IF(AJ7<7,AJ8*0.5,AJ8)) ->  | AQ9: 未就学判定 | AV9: =SUM(L9:AO9) -> 0 | AY9: ※自動入力されます。 | BJ9: 限 度 額 | BN9: =AU30 -> 650000 | BR9: =AY30 -> 200000 | BV9: =BC30 -> 170000
C10: 給 与 所 得 | AP10: ← 所得を入力してください。 | BJ10: 限度額判定 | BN10: =IF(BN8>=BN9,BN9,BN8) -> 29692 | BR10: =IF(BR8>=BR9,BR9,BR8) -> 9195 | BV10: =IF(BV8>=BV9,BV9,BV8) -> 0
C11: 年 金 所 得 | BJ11: 保険料 | BN11: =ROUNDDOWN(BN10,-2) -> 29600 | BR11: =ROUNDDOWN(BR10,-2) -> 9100 | BV11: =ROUNDDOWN(BV10,-2) -> 0
C12: その他所得 | BJ12: 保険料総額 | BR12: =BN11+BR11+BV11 -> 38700
C13: 所得合計(個人) | L13: =SUM(L10:Q12) -> 0 | R13: =SUM(R10:W12) -> 0 | X13: =SUM(X10:AC12) -> 0 | AD13: =SUM(AD10:AI12) -> 0 | AJ13: =SUM(AJ10:AO12) -> 0 | AP13: ← 自動で計算されます。 | BJ13: ②軽減判定 | BR13: [ | BS13: =CG14 -> ７割軽減 | BY13: ]
C14: 給 与 控 除 | L14: =IF(L10>=1,1,0) -> 0 | N14: =IF(L10>100000,100000,L10) -> 0 | R14: =IF(R10>=1,1,0) -> 0 | T14: =IF(R10>100000,100000,R10) -> 0 | X14: =IF(X10>=1,1,0) -> 0 | Z14: =IF(X10>100000,100000,X10) -> 0 | AD14: =IF(AD10>=1,1,0) -> 0 | AF14: =IF(AD10>100000,100000,AD10) -> 0 | AJ14: =IF(AJ10>=1,1,0) -> 0 | AL14: =IF(AJ10>100000,100000,AJ10) -> 0 | AP14: ← 給与・年金所得あれば１、なければ０、 両方あれば所得マイナス１０万円 | BN14: 医 療 分 | BR14: 支援金分 | BV14: 介 護 分 | CB14: 軽減判定 | CG14: =CG15 -> ７割軽減 | CK14: =CK15 -> 0.3
C15: 年 金 控 除 | L15: =IF(L11>=1,1,0) -> 0 | N15: =IF(L11>100000,100000,L11) -> 0 | R15: =IF(R11>=1,1,0) -> 0 | T15: =IF(R11>100000,100000,R11) -> 0 | X15: =IF(X11>=1,1,0) -> 0 | Z15: =IF(X11>100000,100000,X11) -> 0 | AD15: =IF(AD11>=1,1,0) -> 0 | AF15: =IF(AD11>100000,100000,AD11) -> 0 | AJ15: =IF(AJ11>=1,1,0) -> 0 | AL15: =IF(AJ11>100000,100000,AJ11) -> 0 | BJ15: 所 得 割 | BN15: =INT(BN5) -> 0 | BR15: =INT(BR5) -> 0 | BV15: =INT(BV5) -> 0 | CB15: 7 割 | CG15: =IF(L21+L24<=430000+100000*(CG6-1),"７割軽減",CG16) -> ７割軽減 | CK15: =IF(L21+L24<=430000+100000*CG7,0.3,CK16) -> 0.3
C16: 年 金 調 整 | L16: =IF(L14+L15=2,-L17,0) -> 0 | R16: =IF(R14+R15=2,-R17,0) -> 0 | X16: =IF(X14+X15=2,-X17,0) -> 0 | AD16: =IF(AD14+AD15=2,-AD17,0) -> 0 | AJ16: =IF(AJ14+AJ15=2,-AJ17,0) -> 0 | BJ16: 均 等 割 | BN16: =BN6*$CK$14 -> 0 | BR16: =BR6*$CK$14 -> 0 | BV16: =BV6*$CK$14 -> 0 | CB16: 5 割 | CG16: =IF(L21+L24<=430000+290000*CG5+100000*(CG6-1),"５割軽減",CG17) -> ５割軽減 | CK16: =IF(L21+L24<=430000+285000*CG5+100000*CG7,0.5,CK17) -> 0.5
C17: 調 整 控 除 | L17: =IF(N14+N15-100000<0,0,N14+N15-100000) -> 0 | R17: =IF(T14+T15-100000<0,0,T14+T15-100000) -> 0 | X17: =IF(Z14+Z15-100000<0,0,Z14+Z15-100000) -> 0 | AD17: =IF(AF14+AF15-100000<0,0,AF14+AF15-100000) -> 0 | AJ17: =IF(AL14+AL15-100000<0,0,AL14+AL15-100000) -> 0 | BJ17: 平 等 割 | BN17: =BN7*$CK$14 -> 8907.6 | BR17: =BR7*$CK$14 -> 2758.5 | BV17: =BV7*$CK$14 -> 0 | CB17: 2 割 | CG17: =IF(L21+L24<=430000+535000*CG5+100000*(CG7-1),"２割軽減","軽減なし") -> ２割軽減 | CK17: =IF(L21+L24<=430000+520000*CG5+100000*CG7,0.8,1) -> 0.8
C18: 国保用所得 | L18: =IF(L13+L16-430000<0,0,L13+L16-430000) -> 0 | R18: =IF(R13+R16-430000<0,0,R13+R16-430000) -> 0 | X18: =IF(X13+X16-430000<0,0,X13+X16-430000) -> 0 | AD18: =IF(AD13+AD16-430000<0,0,AD13+AD16-430000) -> 0 | AJ18: =IF(AJ13+AJ16-430000<0,0,AJ13+AJ16-430000) -> 0 | AP18: ← 医療分・支援分の計算用所得です。 | BJ18: 合 計 | BN18: =BN15+BN16+BN17 -> 8907.6 | BR18: =BR15+BR16+BR17 -> 2758.5 | BV18: =BV15+BV16+BV17 -> 0
C19: 介護該当判定 | L19: =IF(P19+Q19=0,"該当","非該当") -> 非該当 | P19: =IF(L7<40,1,0) -> 1 | Q19: =IF(L7>64,1,0) -> 0 | R19: =IF(V19+W19=0,"該当","非該当") -> 非該当 | V19: =IF(R7<40,1,0) -> 1 | W19: =IF(R7>64,1,0) -> 0 | X19: =IF(AB19+AC19=0,"該当","非該当") -> 非該当 | AB19: =IF(X7<40,1,0) -> 1 | AC19: =IF(X7>64,1,0) -> 0 | AD19: =IF(AH19+AI19=0,"該当","非該当") -> 非該当 | AH19: =IF(AD7<40,1,0) -> 1 | AI19: =IF(AD7>64,1,0) -> 0 | AJ19: =IF(AN19+AO19=0,"該当","非該当") -> 非該当 | AN19: =IF(AJ7<40,1,0) -> 1 | AO19: =IF(AJ7>64,1,0) -> 0 | AP19: ← 40～65歳は該当。左40歳未満、右65歳以上、 | BJ19: 限 度 額 | BN19: =BN9 -> 650000 | BR19: =BR9 -> 200000 | BV19: =BV9 -> 170000
C20: 介護用所得 | L20: =IF(L19="該当",L18,0) -> 0 | R20: =IF(R19="該当",R18,0) -> 0 | X20: =IF(X19="該当",X18,0) -> 0 | AD20: =IF(AD19="該当",AD18,0) -> 0 | AJ20: =IF(AJ19="該当",AJ18,0) -> 0 | AP20: ← 介護分計算用の所得です。 | BJ20: 限度額判定 | BN20: =IF(BN18>=BN19,BN19,BN18) -> 8907.6 | BR20: =IF(BR18>=BR19,BR19,BR18) -> 2758.5 | BV20: =IF(BV18>=BV19,BV19,BV18) -> 0
C21: 軽減判定 | E21: 所得合計(世帯) | L21: =SUM(L13:AO13) -> 0 | BJ21: 保険料 | BN21: =ROUNDDOWN(BN20,-2) -> 8900 | BR21: =ROUNDDOWN(BR20,-2) -> 2700 | BV21: =ROUNDDOWN(BV20,-2) -> 0
E22: 給・年軽減対象 | L22: =IF(L14=L15="","",IF(L14+L15=0,0,1)) -> 0 | R22: =IF(R14=R15="","",IF(R14+R15=0,0,1)) -> 0 | X22: =IF(X14=X15="","",IF(X14+X15=0,0,1)) -> 0 | AD22: =IF(AD14=AD15="","",IF(AD14+AD15=0,0,1)) -> 0 | AJ22: =IF(AJ14=AJ15="","",IF(AJ14+AJ15=0,0,1)) -> 0 | AP22: ← 給与所得と年金所得の両方がある場合「１」 | BJ22: 保険料総額 | BR22: =BN21+BR21+BV21 -> 11600
E23: 65 年金軽減額 | L23: =IF(L7>64,IF(L11>=150000,-150000,-L11),0) -> 0 | R23: =IF(R7>64,IF(R11>=150000,-150000,-R11),0) -> 0 | X23: =IF(X7>64,IF(X11>=150000,-150000,-X11),0) -> 0 | AD23: =IF(AD7>64,IF(AD11>=150000,-150000,-AD11),0) -> 0 | AJ23: =IF(AJ7>64,IF(AJ11>=150000,-150000,-AJ11),0) -> 0 | AP23: ← ①65歳以上の年金所得者で、②150,000円を上限 | BJ23: ③未就学軽減後 | BR23: ※未就学児判定がある場合
E24: 65 年軽減合計 | L24: =L23+R23+X23+AD23+AJ23 -> 0 | BN24: 医 療 分 | BR24: 支援金分 | BV24: 介 護 分
C25: 国保用所得（再掲） | L25: =IF(L13+L16-430000<0,0,L13+L16-430000) -> 0 | R25: =IF(R13+R16-430000<0,0,R13+R16-430000) -> 0 | X25: =IF(X13+X16-430000<0,0,X13+X16-430000) -> 0 | AD25: =IF(AD13+AD16-430000<0,0,AD13+AD16-430000) -> 0 | AJ25: =IF(AJ13+AJ16-430000<0,0,AJ13+AJ16-430000) -> 0 | AQ25: 令和 | AS25: =G1 -> 0 | AU25: 年度 保険料率等（交野市） | BJ25: 所 得 割 | BN25: =BN15 -> 0 | BR25: =BR15 -> 0 | BV25: =BV15 -> 0
C26: 介護用所得（再掲） | L26: =IF(L19="該当",L18,0) -> 0 | R26: =IF(R19="該当",R18,0) -> 0 | X26: =IF(X19="該当",X18,0) -> 0 | AD26: =IF(AD19="該当",AD18,0) -> 0 | AJ26: =IF(AJ19="該当",AJ18,0) -> 0 | AU26: 医療分 | AY26: 支援分 | BC26: 介護分 | BJ26: 均 等 割 | BN26: =BN16/AV8*AV9 ->  | BR26: =BR16/AV8*AV9 ->  | BV26: =BV16 -> 0
C27: 保険料計算（個別） | E27: 医療 | G27: 所 得 割 | L27: =IF(L7="",0,$AU$27*L25) -> 0 | R27: =IF(R7="",0,$AU$27*R25) -> 0 | X27: =IF(X7="",0,$AU$27*X25) -> 0 | AD27: =IF(AD7="",0,$AU$27*AD25) -> 0 | AJ27: =IF(AJ7="",0,$AU$27*AJ25) -> 0 | AQ27: 所 得 割 | AU27: 0.0847 | AY27: 0.0257 | BC27: 0.0247 | BJ27: 平 等 割 | BN27: =BN17 -> 8907.6 | BR27: =BR17 -> 2758.5 | BV27: =BV17 -> 0
G28: 均 等 割 | L28: =IF(L7="",0,$AU$28) -> 0 | R28: =IF(R7="",0,$AU$28) -> 0 | X28: =IF(X7="",0,$AU$28) -> 0 | AD28: =IF(AD7="",0,$AU$28) -> 0 | AJ28: =IF(AJ7="",0,$AU$28) -> 0 | AQ28: 均 等 割 | AU28: 30331 | AY28: 9314 | BC28: 17520 | BJ28: 合 計 | BN28: =BN25+BN26+BN27 ->  | BR28: =BR25+BR26+BR27 ->  | BV28: =BV25+BV26+BV27 -> 0
E29: 支援金 | G29: 所 得 割 | L29: =IF(L7="",0,$AY$27*L25) -> 0 | R29: =IF(R7="",0,$AY$27*R25) -> 0 | X29: =IF(X7="",0,$AY$27*X25) -> 0 | AD29: =IF(AD7="",0,$AY$27*AD25) -> 0 | AJ29: =IF(AJ7="",0,$AY$27*AJ25) -> 0 | AQ29: 平 等 割 | AU29: 29692 | AY29: 9195 | BC29: 0 | BJ29: 限度額 | BN29: =BN19 -> 650000 | BR29: =BR19 -> 200000 | BV29: =BV19 -> 170000
G30: 均 等 割 | L30: =IF(L7="",0,$AY$28) -> 0 | R30: =IF(R7="",0,$AY$28) -> 0 | X30: =IF(X7="",0,$AY$28) -> 0 | AD30: =IF(AD7="",0,$AY$28) -> 0 | AJ30: =IF(AJ7="",0,$AY$28) -> 0 | AQ30: 限 度 額 | AU30: 650000 | AY30: 200000 | BC30: 170000 | BJ30: 限度額判定 | BN30: =IF(BN28>=BN29,BN29,BN28) ->  | BR30: =IF(BR28>=BR29,BR29,BR28) ->  | BV30: =IF(BV28>=BV29,BV29,BV28) -> 0
E31: 介護 | G31: 所 得 割 | L31: =L26*$BC$27 -> 0 | R31: =R26*$BC$27 -> 0 | X31: =X26*$BC$27 -> 0 | AD31: =AD26*$BC$27 -> 0 | AJ31: =AJ26*$BC$27 -> 0 | AQ31: 軽減判定 | AU31: 7割 | AY31: 5割 | BC31: 2割 | BJ31: 保険料 | BN31: =ROUNDDOWN(BN30,-2) ->  | BR31: =ROUNDDOWN(BR30,-2) ->  | BV31: =ROUNDDOWN(BV30,-2) -> 0
G32: 均 等 割 | L32: =IF(L19="該当",$BC$28,L20) -> 0 | R32: =IF(R19="該当",$BC$28,R20) -> 0 | X32: =IF(X19="該当",$BC$28,X20) -> 0 | AD32: =IF(AD19="該当",$BC$28,AD20) -> 0 | AJ32: =IF(AJ19="該当",$BC$28,AJ20) -> 0 | AQ32: 基 準 額 | AU32: 430000 | AY32: 290000 | BC32: 535000 | BJ32: 保険料総額 | BR32: =BN31+BR31+BV31 -> 
C33: 【注意事項】
C34: ※上記結果はあくまでも試算であり、実際の保険料額と異なる場合があります。
C35: ※以下の場合の保険料計算に対応しておりませんのでご注意ください。
C36: ①年度途中に加入者の所得や人数が変わる場合
C37: ②年度途中に加入者が40歳に到達し、介護保険の第２号被保険者となる場合
C38: ③年度途中に加入者が65歳に到達し、介護保険の第１号被保険者となる場合
C39: ④年度途中に加入者が75歳に到達し、後期高齢者医療制度の加入者となる場合
C40: ⑤年度途中に加入者が後期高齢者医療制度に移行し、残った国民健康保険の加入者が１人となる場合
C41: ⑥世帯の中に特定同一世帯所属者がいる場合
C42: ⑦所得金額調整控除がある場合や、給与所得の特定支出控除がある場合等
C43: ⑧専従者給与がある場合、または専従者控除を必要経費として算入している場合
C44: ⑨分離課税所得（土地・株式等の譲渡所得等）がある場合
C46: ●給与所得の入力方法 ※「給与所得控除後の給与等の金額」については国税庁のホームページにてご確認ください。
C47: 令和4年度の源泉徴収票をお持ちの方 （他に給与収入がない方） | S47: 源泉徴収票に記載されている「給与所得控除後の金額」欄に記載されている金額を入力してください。
C49: 令和4年度の源泉徴収票をお持ちの方 （複数の源泉徴収票をお持ちの方） | S49: それぞれの源泉徴収票に記載されている「支払金額」の合計金額から給与所得控除の金額を差し引いた金額を入力してください。
C51: 令和4年度の源泉徴収票をお持ちではない方（年収から保険料を計算する場合） | S51: 令和4年1月から12月までの給与の支給額（額面）の合計額、もしくは年収の金額から給与所得控除の金額を差し引いた金額を入力してください。
C54: ●年金所得の入力方法
C55: ※公的年金等に係る雑所得以外の金額【 (A) × (B) － (C) 】を入力してください。
C56: 公的年金等に係る雑所得以外の所得に係る合計所得金額が1,000万円以下の方
C57: 年金を受け取る方の 年齢 | K57: (A)公的年金等の収入金額の合計額 | AF57: (B)割合 | AL57: ©控除額
C59: 65歳未満 | K59: (公的年金等の収入金額の合計額が600,000円までの場合は、所得はゼロとなります。)
K60: 600,001円から1,299,999円まで | AF60: 1 | AL60: 600,000円
K61: 1,300,000円から4,099,999円まで | AF61: 0.75 | AL61: 275,000円
K62: 4,100,000円から7,699,999円まで | AF62: 0.85 | AL62: 685,000円
K63: 7,700,000円から9,999,999円まで | AF63: 0.95 | AL63: 1,455,000円
K64: 10,000,000円以上 | AF64: 1 | AL64: 1,955,000円
C65: 65歳以上 | K65: (公的年金等の収入金額の合計額が1,100,000円までの場合は、所得はゼロとなります。)
K66: 1,100,001円から3,299,999円まで | AF66: 1 | AL66: 1,100,000円
K67: 3,300,000円から4,099,999円まで | AF67: 0.75 | AL67: 275,000円
K68: 4,100,000円から7,699,999円まで | AF68: 0.85 | AL68: 685,000円
K69: 7,700,000円から9,999,999円まで | AF69: 0.95 | AL69: 1,455,000円
K70: 10,000,000円以上 | AF70: 1 | AL70: 1,955,000円
C71: ※公的年金等に係る雑所得以外の所得に係る合計所得金額が1,000万円を超える場合は、計算方法が異なりますので、医療保険課までお問い合わせください。
C74: ●営業・その他事業・不動産等の所得の入力方法
C75: 令和4年の確定申告をされた方 （確定申告書の控えがある方） | S75: 「所得金額等」の欄に記載されている所得金額の内、給与所得と公的年金等の所得を除いた金額の合計額を入力してください。※給与所得、公的年金等の所得がある場合は別途、給与所得、年金所得欄に金額を入力してください。
C78: 令和4年の確定申告をされていない方 （見込所得にて計算をされる方） | S78: 収入から必要経費を差し引いた金額を入力してください。複数の所得（給与所得、公的年金等の所得を除く）がある場合は、その合計額を入力してください。

Sheet 年齢リスト (hidden)
A2: 0
A3: 1
A4: 2
A5: 3
A6: 4
A7: 5
A8: 6
A9: 7
A10: 8
A11: 9
A12: 10
A13: 11
A14: 12
A15: 13
A16: 14
A17: 15
A18: 16
A19: 17
A20: 18
A21: 19
A22: 20
A23: 21
A24: 22
A25: 23
A26: 24
A27: 25
A28: 26
A29: 27
A30: 28
A31: 29
A32: 30
A33: 31
A34: 32
A35: 33
A36: 34
A37: 35
A38: 36
A39: 37
A40: 38
A41: 39
A42: 40
A43: 41
A44: 42
A45: 43
A46: 44
A47: 45
A48: 46
A49: 47
A50: 48
A51: 49
A52: 50
A53: 51
A54: 52
A55: 53
A56: 54
A57: 55
A58: 56
A59: 57
A60: 58
A61: 59
A62: 60
A63: 61
A64: 62
A65: 63
A66: 64
A67: 65
A68: 66
A69: 67
A70: 68
A71: 69
A72: 70
A73: 71
A74: 72
A75: 73
A76: 74
